bitfinex/quotes_SOLUSD_20250204
["timestamp","ask_amount","ask_price","bid_price","bid_amount"]
[1738635640341,20.0,218.98,218.84,13.41184853]
[1738635640543,20.0,218.98,218.84,17.98124853]
[1738635641356,20.0,218.99,218.84,17.98124853]
[1738635641855,20.0,218.99,218.85,0.12549]
[1738635642062,20.0,218.99,218.86,13.41184853]
[1738635643279,0.71073611,219.01,218.89,20.0]
[1738635643442,6.1124,219.02,218.9,13.41184853]
[1738635643644,0.58524611,219.05,218.9,13.41184853]
[1738635643973,20.03,219.01,218.86,4.569]
[1738635644370,20.03,219.01,218.89,20.0]
[1738635644738,0.03,219.01,218.9,13.41184853]
[1738635645132,0.03,219.01,218.87,4.5687]
[1738635645746,0.03,219.01,218.9,20.0]
[1738635646466,0.61524611,219.01,218.9,20.0]
[1738635646853,0.03,219.01,218.9,20.0]
[1738635647970,13.56733853,219.01,218.84,0.063]
[1738635648175,0.12549,218.95,218.84,0.063]
[1738635648347,0.71073611,218.95,218.84,0.063]
[1738635649047,0.03,219.01,218.87,13.41184853]
[1738635649276,0.58524611,219.0,218.86,20.0]
[1738635649439,20.0,218.96,218.84,0.063]
[1738635649851,20.0,218.96,218.85,20.0]
[1738635651185,20.0,218.96,218.85,19.91949203]
[1738635651555,0.03,219.01,218.86,13.41184853]
[1738635651872,0.12549,218.98,218.84,4.6325]
[1738635652052,20.0,218.96,218.84,4.6325]
[1738635652952,20.0,218.96,218.84,0.063]
[1738635653280,0.61524611,219.01,218.84,0.31398]
[1738635653644,0.12549,219.0,218.84,0.31398]
[1738635654463,20.03,219.01,218.86,33.53733853]
[1738635654847,0.03,219.01,218.87,0.12549]
[1738635656168,0.03,219.01,218.89,13.41184853]
[1738635656556,0.03,219.01,218.93,13.41184853]
[1738635656967,0.03,219.01,218.94,13.41184853]
[1738635657585,0.03,219.01,218.96,13.41184853]
[1738635657800,0.03,219.01,219.0,13.41184853]
[1738635659594,0.03,219.01,219.0,13.53733853]
[1738635659800,0.03,219.01,219.0,18.10353853]
[1738635660205,0.03,219.01,219.0,18.22902853]
[1738635660799,0.03,219.01,218.98,4.5664]
[1738635661038,6.4728,219.13,218.99,33.53733853]
[1738635661768,0.12549,219.12,218.99,20.0]
[1738635661988,0.12549,219.09,218.95,1.6538]
[1738635662188,0.12549,219.05,218.89,8.1083]
[1738635662407,0.71073611,219.05,218.9,13.41184853]
[1738635663865,0.71073611,219.05,218.9,17.98004853]
[1738635664100,0.58524611,219.06,218.91,0.25098]
[1738635664410,232.78400094,219.32,218.98,13.53733853]
[1738635664411,6.4728,219.13,218.98,13.53733853]
[1738635664929,6.4728,219.13,218.98,13.41184853]
[1738635665088,0.58524611,219.12,218.91,112.8]
[1738635665287,6.4728,219.13,219.0,20.0]
[1738635665494,6.4728,219.13,219.01,13.53733853]
[1738635666034,6.4728,219.13,219.01,18.10313853]
[1738635666397,6.2128,219.19,219.05,13.53733853]
[1738635666598,6.2128,219.19,219.06,13.41184853]
[1738635667000,6.2128,219.19,219.05,13.53733853]
[1738635667432,6.2128,219.19,219.06,20.12549]
[1738635667724,6.2128,219.19,219.07,18.10203853]
[1738635667896,0.03,219.13,219.1,20.0]
[1738635668297,0.03,219.13,219.11,13.41184853]
[1738635669093,0.03,219.13,219.07,4.69019]
[1738635669427,0.03,219.13,219.04,3.54]
[1738635669786,0.03,219.13,219.05,13.41184853]
[1738635672213,0.03,219.13,219.11,13.53733853]
[1738635673423,0.03,219.13,219.11,18.10113853]
[1738635674225,0.03,219.13,219.12,14.22159241]
[1738635674594,0.03,219.13,219.12,13.41184853]
[1738635674820,0.03,219.13,219.04,9.8351]
[1738635675024,0.03,219.13,219.04,10.8604]
[1738635675210,0.03,219.13,219.05,13.53733853]
[1738635676805,0.03,219.13,219.05,18.10243853]
[1738635678035,0.03,219.13,219.11,13.41184853]
[1738635678439,0.03,219.13,219.06,4.5649]
[1738635678808,0.03,219.13,219.06,13.53733853]
[1738635679341,0.03,219.13,219.07,0.12549]
[1738635679509,0.03,219.13,219.06,13.53733853]
[1738635679926,0.03,219.13,219.06,18.10223853]
[1738635680544,0.03,219.13,219.1,13.41184853]
[1738635681616,0.03,219.13,219.11,4.68929]
[1738635682139,0.03,219.13,219.11,0.12549]
[1738635683150,0.03,219.13,219.11,4.68939]
[1738635683314,0.03,219.13,219.11,0.12549]
[1738635685110,0.03,219.13,219.11,4.68929]
[1738635685411,0.03,219.13,219.09,81.8]
[1738635685933,0.03,219.13,219.1,13.41184853]
[1738635687045,0.03,219.13,219.12,38.22652853]
[1738635687343,0.03,219.13,219.12,68.22652853]
[1738635687545,0.03,219.21,219.18,20.0]
[1738635687736,0.03,219.21,219.2,0.12549]
[1738635687927,0.03,219.21,219.2,33.53733853]
[1738635691151,0.03,219.21,219.2,64.34680046]
[1738635691327,0.03,219.21,219.2,64.22122379]
[1738635691529,0.03,219.21,219.2,64.34671379]
[1738635692139,6.1143,219.36,219.27,13.66282853]
[1738635692343,1.13566172,219.44,219.27,13.66282853]
[1738635692547,6.1143,219.43,219.27,17.16282853]
[1738635692714,6.1143,219.43,219.31,13.41184853]
[1738635693740,6.1143,219.43,219.31,17.97154853]
[1738635694251,6.1143,219.43,219.31,13.41184853]
[1738635695277,6.1143,219.43,219.32,0.12549]
[1738635695460,6.1143,219.43,219.35,13.41184853]
[1738635695772,6.1143,219.43,219.37,13.41184853]
[1738635695933,6.1143,219.48,219.37,13.41184853]
[1738635697057,6.1143,219.48,219.41,13.41184853]
[1738635697240,6.1143,219.53,219.41,13.41184853]
[1738635697443,6.1143,219.53,219.42,0.12549]
[1738635698967,6.1143,219.53,219.47,13.41184853]
[1738635699144,6.1143,219.61,219.47,13.41184853]
[1738635700138,20.0,219.58,219.46,20.0]
[1738635700481,20.0,219.58,219.45,33.41184853]
[1738635700768,6.1143,219.61,219.5,20.0]
[1738635701432,6.1143,219.61,219.49,20.0]
[1738635701832,6.1143,219.61,219.5,13.41184853]
[1738635702463,6.1143,219.61,219.54,13.41184853]
[1738635703868,6.1143,219.61,219.49,0.68295591]
[1738635704065,6.1143,219.61,219.48,32.24021861]
[1738635704449,6.1143,219.61,219.51,20.0]
[1738635704765,6.1143,219.61,219.52,13.41184853]
[1738635706851,6.1443,219.61,219.52,13.41184853]
[1738635708268,6.1443,219.61,219.44,30.0]
[1738635708569,6.1443,219.61,219.44,3.46]
[1738635708869,6.1443,219.61,219.48,20.0]
[1738635709469,6.1443,219.61,219.48,13.66282853]
[1738635709666,6.1443,219.61,219.51,13.41184853]
[1738635710657,6.1443,219.61,219.44,3.46]
[1738635710856,6.1443,219.61,219.44,33.46]
[1738635711251,0.58524611,219.6,219.45,13.41184853]
[1738635711451,6.1443,219.61,219.42,5.73335662]
[1738635711649,6.1443,219.61,219.43,13.53733853]
[1738635712049,6.1443,219.61,219.46,20.0]
[1738635712364,6.1443,219.61,219.43,18.09443853]
[1738635712566,6.1443,219.61,219.46,20.0]
[1738635713167,6.72954611,219.61,219.46,20.0]
[1738635713584,6.1443,219.61,219.46,20.0]
[1738635713873,0.12549,219.6,219.42,1.5901]
[1738635714061,0.12549,219.57,219.37,4.9758]
[1738635714268,0.58524611,219.56,219.37,4.9758]
[1738635714577,0.58524611,219.56,219.41,20.0]
[1738635715177,0.58524611,219.56,219.38,13.41184853]
[1738635715590,0.58524611,219.56,219.41,20.0]
[1738635716750,20.0,219.58,219.42,13.41184853]
[1738635716953,6.1443,219.61,219.45,20.0]
[1738635717889,6.1443,219.61,219.46,33.41184853]
[1738635718271,6.72954611,219.61,219.46,20.0]
[1738635718473,6.72954611,219.61,219.43,4.80818]
[1738635718684,6.72954611,219.61,219.44,33.41184853]
[1738635719289,6.72954611,219.61,219.44,37.96874853]
[1738635720276,6.1443,219.61,219.44,37.96874853]
[1738635720477,6.1443,219.61,219.44,33.41184853]
[1738635720771,0.12549,219.56,219.32,30.0]
[1738635720969,0.58524611,219.55,219.34,3.44]
[1738635721168,0.58524611,219.55,219.35,10.0466]
[1738635721378,6.5702,219.54,219.38,20.0]
[1738635721583,0.58524611,219.53,219.38,20.0]
[1738635721966,0.58524611,219.53,219.38,13.41184853]
[1738635722167,6.5702,219.54,219.38,13.41184853]
[1738635722586,6.5702,219.54,219.42,13.41184853]
[1738635722894,6.5702,219.54,219.43,20.0]
[1738635723084,6.5702,219.54,219.44,13.41184853]
[1738635723266,6.5702,219.54,219.46,13.41184853]
[1738635723465,6.5752,219.6,219.48,13.41184853]
[1738635723680,0.58524611,219.59,219.38,127.7539]
[1738635723878,6.5752,219.6,219.42,30.0]
[1738635724081,6.5752,219.6,219.44,13.66282853]
[1738635724285,6.5752,219.6,219.46,13.41184853]
[1738635724597,6.5752,219.6,219.48,13.41184853]
[1738635724980,6.5752,219.6,219.48,17.96794853]
[1738635725184,6.5752,219.6,219.48,13.41184853]
[1738635726187,0.58524611,219.59,219.38,123.1955]
[1738635726395,20.0,219.57,219.39,7.998]
[1738635726569,0.58524611,219.56,219.39,7.998]
[1738635726772,0.58524611,219.56,219.4,13.66282853]
[1738635727004,20.0,219.57,219.4,13.66282853]
[1738635727192,6.5752,219.6,219.44,13.41184853]
[1738635727416,6.5752,219.6,219.47,20.0]
[1738635728676,6.5752,219.6,219.49,0.25098]
[1738635729111,0.03,219.61,219.54,20.0]
[1738635729398,0.03,219.61,219.6,33.41184853]
[1738635730177,0.03,219.61,219.6,13.41184853]
[1738635730473,0.03,219.61,219.6,33.41184853]
[1738635732907,0.03,219.61,219.6,43.66282853]
[1738635733085,0.03,219.61,219.6,13.41184853]
[1738635733484,0.03,219.61,219.6,33.41184853]
[1738635733799,0.03,219.61,219.6,34.22005316]
[1738635733986,0.03,219.61,219.6,64.34554316]
[1738635734593,0.03,219.61,219.6,44.34554316]
[1738635735503,2.29009666,219.79,219.67,0.12549]
[1738635735714,6.83427671,219.82,219.68,3.48]
[1738635737198,0.58524611,219.81,219.64,4.5528]
[1738635737395,20.0,219.79,219.68,3.46]
[1738635737601,20.0,219.79,219.66,3.46]
[1738635737794,20.0,219.79,219.65,20.0]
[1738635739083,0.58524611,219.81,219.65,20.0]
[1738635740005,13.53733853,219.8,219.62,3.46]
[1738635740205,0.12549,219.76,219.62,3.46]
[1738635740386,0.58524611,219.75,219.58,13.41184853]
[1738635740710,0.58524611,219.75,219.59,3.46]
[1738635741008,0.58524611,219.77,219.63,20.0]
[1738635741182,0.58524611,219.8,219.63,20.0]
[1738635741388,20.0,219.79,219.63,20.0]
[1738635741590,0.12549,219.77,219.6,13.41184853]
[1738635741888,0.58524611,219.76,219.6,13.41184853]
[1738635742704,19.75903853,219.75,219.56,1.5418]
[1738635742903,13.53733853,219.73,219.56,1.5418]
[1738635743106,0.12549,219.71,219.59,20.0]
[1738635743296,0.58524611,219.7,219.56,1.5418]
[1738635743488,0.58524611,219.7,219.61,0.063]
[1738635744302,20.0,219.72,219.61,0.063]
[1738635744807,0.12549,219.71,219.61,0.063]
[1738635745106,0.71073611,219.71,219.61,0.063]
[1738635746115,20.58524611,219.72,219.61,0.063]
[1738635747617,0.12549,219.71,219.61,0.063]
[1738635748421,20.58524611,219.72,219.61,0.063]
[1738635748913,20.0,219.72,219.61,0.063]
[1738635749319,1.83494412,219.74,219.61,0.063]
[1738635749616,6.2217,219.75,219.61,0.063]
[1738635750896,6.80694611,219.75,219.61,0.063]
[1738635751395,13.53733853,219.71,219.61,0.063]
[1738635751596,0.12549,219.69,219.61,0.063]
[1738635751804,0.58524611,219.68,219.61,0.063]
[1738635752016,0.12549,219.67,219.61,0.063]
[1738635752193,0.58524611,219.66,219.61,0.063]
[1738635752392,6.4399,219.65,219.61,0.063]
[1738635753712,0.58524611,219.64,219.61,0.063]
[1738635753893,6.4399,219.65,219.61,0.063]
[1738635754095,20.0,219.62,219.46,3.48]
[1738635754600,20.0,219.62,219.48,20.0]
[1738635756094,20.0,219.62,219.48,24.5561]
[1738635756296,6.4399,219.65,219.54,20.0]
[1738635756516,6.4399,219.73,219.56,13.41184853]
[1738635756816,20.0,219.7,219.56,13.41184853]
[1738635756999,0.58524611,219.72,219.57,4.5543]
[1738635757204,6.4399,219.73,219.57,4.5543]
[1738635757413,6.4399,219.73,219.58,0.6827953]
[1738635757806,20.0,219.7,219.58,5.0837]
[1738635758691,20.0,219.7,219.58,9.6378]
[1738635758996,6.4399,219.73,219.58,9.6378]
[1738635760321,6.4399,219.73,219.58,10.32061593]
[1738635760705,6.4399,219.73,219.58,5.76651593]
[1738635760910,6.4399,219.73,219.58,5.0837]
[1738635761219,6.4399,219.73,219.58,9.6377]
[1738635761627,6.4399,219.73,219.59,13.41184853]
[1738635761812,6.4399,219.73,219.59,14.09458824]
[1738635762709,6.4399,219.73,219.6,4.5537]
[1738635764011,6.4399,219.73,219.58,5.0837]
[1738635764324,6.4399,219.73,219.58,9.6377]
[1738635765124,0.03,219.75,219.59,14.09465226]
[1738635765629,0.12549,219.73,219.58,9.6377]
[1738635766505,0.03,219.75,219.59,14.22012638]
[1738635766932,0.03,219.75,219.61,13.53733853]
[1738635767405,0.03,219.75,219.61,14.21998061]
[1738635767607,0.03,219.75,219.61,13.53733853]
[1738635767909,0.03,219.75,219.63,13.41184853]
[1738635768823,0.03,219.75,219.67,20.0]
[1738635769123,0.03,219.75,219.64,4.5529]
[1738635769304,0.03,219.75,219.65,13.41184853]
[1738635770027,0.03,219.75,219.62,4.5531]
[1738635770223,0.03,219.75,219.64,20.0]
[1738635770924,0.03,219.73,219.65,0.80820128]
[1738635771109,0.03,219.73,219.65,20.0]
[1738635771429,0.03,219.73,219.62,4.5532]
[1738635771725,0.03,219.73,219.64,20.0]
[1738635771930,0.03,219.73,219.62,4.5532]
[1738635772125,0.03,219.73,219.64,20.0]
[1738635774323,0.03,219.73,219.66,0.12549]
[1738635775531,0.03,219.73,219.68,13.41184853]
[1738635775712,0.03,219.73,219.69,1.5806]
[1738635776519,0.03,219.75,219.71,30.0]
[1738635776920,0.03,219.75,219.74,20.0]
[1738635777226,0.03,219.75,219.74,33.53733853]
[1738635777440,0.03,219.75,219.74,34.21960857]
[1738635777614,0.03,219.75,219.74,38.77040857]
[1738635778029,0.03,219.75,219.74,68.77040857]
[1738635779335,0.03,219.75,219.74,68.89589857]
[1738635779838,18.19613,219.93,219.76,0.12549]
[1738635780030,18.19613,219.93,219.79,13.41184853]
[1738635780338,21.14511915,219.94,219.8,1.6421]
[1738635780545,0.58524611,219.93,219.8,1.6421]
[1738635781630,40.50044896,219.94,219.8,1.6421]
[1738635781830,0.58524611,219.93,219.75,3.44]
[1738635782025,20.0,219.91,219.75,7.9905]
[1738635782227,20.0,219.91,219.77,13.53733853]
[1738635783239,20.0,219.91,219.77,4.55]
[1738635783843,0.28917671,219.82,219.77,4.55]
[1738635784631,0.28917671,219.82,219.78,24.5498]
[1738635785026,0.28917671,219.82,219.81,20.0]
[1738635785232,0.28917671,219.82,219.81,33.53733853]
[1738635785638,0.28917671,219.82,219.79,6.6555]
[1738635787046,0.28917671,219.82,219.79,11.2052]
[1738635787939,0.28917671,219.82,219.79,6.6555]
[1738635788950,0.28917671,219.82,219.77,13.53733853]
[1738635790537,0.28917671,219.82,219.73,1.6421]
[1738635790746,0.28917671,219.82,219.68,38.1982]
[1738635790931,0.12549,219.81,219.68,1.5721]
[1738635791134,0.28917671,219.82,219.68,1.5721]
[1738635791449,0.28917671,219.82,219.69,13.41184853]
[1738635792939,0.12549,219.81,219.68,1.5721]
[1738635793338,0.87442282,219.82,219.68,1.5721]
[1738635793538,0.28917671,219.82,219.68,1.5721]
[1738635795557,0.28917671,219.82,219.69,0.063]
[1738635796242,0.87442282,219.82,219.69,0.063]
[1738635796443,0.28917671,219.82,219.69,0.063]
[1738635798661,0.12549,219.81,219.69,0.063]
[1738635798968,0.71073611,219.81,219.69,0.063]
[1738635800356,0.12549,219.78,219.69,0.063]
[1738635801251,0.58524611,219.79,219.69,0.063]
[1738635801464,0.58524611,219.81,219.69,0.063]
[1738635802433,0.28917671,219.82,219.69,0.063]
[1738635803944,0.28917671,219.82,219.69,0.74552683]
[1738635805268,0.28917671,219.82,219.7,4.5516]
[1738635805729,0.28917671,219.82,219.71,13.41184853]
[1738635806128,0.28917671,219.82,219.7,18.08893853]
[1738635806856,0.28917671,219.82,219.71,2.20806695]
[1738635807432,0.28917671,219.82,219.73,20.0]
[1738635807852,0.28917671,219.82,219.74,13.53733853]
[1738635808761,0.28917671,219.82,219.75,4.5506]
[1738635809856,0.28917671,219.82,219.73,20.0]
[1738635810558,0.28917671,219.82,219.71,1.5257]
[1738635811667,0.28917671,219.82,219.72,13.41184853]
[1738635811851,0.28917671,219.82,219.73,0.12549]
[1738635813351,0.28917671,219.82,219.74,4.5508]
[1738635813547,0.28917671,219.82,219.72,13.41184853]
[1738635813942,0.28917671,219.82,219.71,6.077]
[1738635814141,0.28917671,219.82,219.71,1.5257]
[1738635819459,0.28917671,219.82,219.73,13.41184853]
[1738635819767,0.28917671,219.82,219.71,1.5257]
[1738635819966,0.28917671,219.82,219.69,0.063]
[1738635820276,6.0034,219.81,219.71,0.063]
[1738635825190,6.0034,219.81,219.72,20.0]
[1738635825668,6.0034,219.81,219.71,0.063]
[1738635831286,6.58864611,219.81,219.71,0.063]
[1738635831484,0.12549,219.8,219.71,0.063]
[1738635831698,0.12549,219.77,219.71,0.063]
[1738635831982,0.71073611,219.77,219.71,0.063]
[1738635832289,7.60990111,219.77,219.71,0.063]
[1738635832787,0.71073611,219.77,219.71,0.063]
[1738635833360,0.58524611,219.77,219.71,0.063]
[1738635833566,20.0,219.78,219.71,0.063]
[1738635834287,6.0334,219.81,219.71,0.063]
[1738635838364,0.03,219.81,219.72,8.093]
[1738635839687,0.03,219.81,219.72,1.6634]
[1738635839884,0.03,219.81,219.71,0.063]
[1738635842486,6.6831,219.81,219.71,0.063]
[1738635849809,0.12549,219.77,219.71,0.063]
[1738635850103,0.58524611,219.76,219.71,0.063]
[1738635850908,0.12549,219.75,219.71,0.0001]
[1738635851072,0.58524611,219.74,219.71,0.0001]
[1738635852183,1.73000172,219.74,219.71,0.0001]
[1738635852383,0.58524611,219.74,219.71,0.0001]
[1738635853875,1.71283607,219.74,219.71,0.0001]
[1738635854071,0.03,219.81,219.71,3.3801]
[1738635854270,0.61524611,219.81,219.71,3.3801]
[1738635854484,0.12549,219.8,219.71,3.3801]
[1738635854688,0.58524611,219.79,219.71,0.0001]
[1738635854971,0.03,219.81,219.71,0.0001]
[1738635855389,0.15549,219.81,219.71,0.0001]
[1738635856695,13.56733853,219.81,219.71,0.0001]
[1738635856999,0.12549,219.75,219.71,0.0001]
[1738635857205,0.71073611,219.75,219.71,0.0001]
[1738635859581,6.3653,219.76,219.71,0.0001]
[1738635860713,0.03,219.81,219.71,0.0001]
[1738635861228,0.15549,219.81,219.71,0.0001]
[1738635861376,0.03,219.81,219.71,0.0001]
[1738635861583,0.03,219.81,219.71,1.6088]
[1738635862386,0.61524611,219.81,219.71,1.6088]
[1738635862580,0.03,219.81,219.71,1.6088]
[1738635864306,0.58524611,219.8,219.71,0.0001]
[1738635865083,0.74073611,219.81,219.71,0.0001]
[1738635865279,20.0,219.8,219.71,0.0001]
[1738635865480,0.58524611,219.79,219.71,0.0001]
[1738635866482,0.12549,219.78,219.71,0.0001]
[1738635866708,0.58524611,219.77,219.71,0.0001]
[1738635867017,0.58524611,219.78,219.71,0.0001]
[1738635868028,0.12549,219.78,219.71,0.0001]
[1738635872235,0.12549,219.76,219.71,0.0001]
[1738635872529,0.58524611,219.75,219.71,0.0001]
[1738635873605,0.12549,219.74,219.71,0.0001]
[1738635874023,0.71073611,219.74,219.71,0.0001]
[1738635874919,0.12549,219.75,219.71,0.0001]
[1738635875118,0.58524611,219.74,219.71,0.0001]
[1738635877916,20.0,219.74,219.71,0.0001]
[1738635881124,0.58524611,219.77,219.71,0.0001]
[1738635881301,0.03,219.81,219.71,13.41194853]
[1738635881501,0.03,219.81,219.71,17.96324853]
[1738635881923,0.03,219.78,219.71,17.96324853]
[1738635882120,0.03,219.78,219.71,0.0001]
[1738635885424,0.61524611,219.78,219.71,0.0001]
[1738635885604,0.15549,219.78,219.71,0.0001]
[1738635887099,0.03,219.78,219.71,0.0001]
[1738635888409,20.12549,219.76,219.71,0.0001]
[1738635890923,0.12549,219.74,219.58,0.063]
[1738635891126,20.0,219.68,219.58,0.063]
[1738635891350,0.12549,219.65,219.58,0.063]
[1738635891520,0.58524611,219.64,219.58,0.063]
[1738635892535,0.71073611,219.65,219.58,0.063]
[1738635892721,20.0,219.66,219.58,0.063]
[1738635893537,0.12549,219.68,219.58,0.063]
[1738635893782,6.93864611,219.74,219.58,0.063]
[1738635894033,6.3534,219.74,219.71,0.063]
[1738635894223,20.0,219.72,219.71,0.063]
[1738635894735,6.3534,219.74,219.71,0.063]
[1738635895031,0.71073611,219.76,219.71,0.063]
[1738635895732,20.71073611,219.76,219.71,0.063]
[1738635897914,20.71073611,219.76,219.64,1.675081]
[1738635898334,13.53733853,219.71,219.64,1.675081]
[1738635898531,0.12549,219.67,219.64,8.1e-05]
[1738635898823,0.12549,219.65,219.58,0.063]
[1738635899131,0.12549,219.63,219.58,0.063]
[1738635899334,0.58524611,219.64,219.52,6.89916549]
[1738635899335,0.12549,219.61,219.52,6.89916549]
[1738635899513,0.12549,219.59,219.52,6.89916549]
[1738635899833,0.12549,219.57,219.49,0.063]
[1738635900244,0.12549,219.55,219.49,0.063]
[1738635900445,0.58524611,219.54,219.49,0.063]
[1738635900749,0.12549,219.5,219.47,0.063]
[1738635900936,20.12549,219.48,219.44,8.28764781]
[1738635901249,20.0,219.47,219.44,3.84576227]
[1738635902235,0.58524611,219.47,219.44,3.84576227]
[1738635902551,0.12549,219.46,219.44,3.84576227]
[1738635902746,0.12549,219.44,219.43,3.71092776]
[1738635902948,13.53733853,219.44,219.39,0.063]
[1738635903149,0.12549,219.4,219.39,0.063]
[1738635903361,0.12549,219.4,219.36,0.063]
[1738635903362,20.71073611,219.4,219.36,0.063]
[1738635903656,13.53733853,219.38,219.36,0.063]
[1738635903835,0.71073611,219.38,219.36,0.063]
[1738635904234,15.12258464,219.38,219.32,3.71092776]
[1738635904437,0.12549,219.34,219.32,3.71092776]
[1738635904635,0.58524611,219.33,219.32,3.71092776]
[1738635905256,0.12549,219.32,219.24,1.6039]
[1738635905449,0.58524611,219.31,219.24,1.6039]
[1738635905669,0.58524611,219.34,219.24,1.6039]
[1738635906049,9.37602,219.33,219.24,1.6039]
[1738635906375,9.37602,219.33,219.32,0.063]
[1738635907242,9.37602,219.33,219.21,20.0]
[1738635908251,9.37602,219.33,219.17,17.97444853]
[1738635908579,7.03724425,219.26,219.19,4.5622]
[1738635909348,0.58524611,219.25,219.1,3.38]
[1738635909550,7.03724425,219.26,219.1,3.38]
[1738635909980,0.71073611,219.28,219.11,13.41184853]
[1738635910191,0.12549,219.24,219.08,11.4112]
[1738635910356,0.12549,219.22,219.09,16.0355]
[1738635910686,0.12549,219.2,219.04,4.5653]
[1738635910888,0.12549,219.18,219.03,8.0913]
[1738635911175,0.58524611,219.19,219.03,12.6567]
[1738635911383,0.58524611,219.21,219.04,13.41184853]
[1738635911759,0.12549,219.2,219.04,13.41184853]
[1738635912258,27.16273425,219.2,219.04,13.41184853]
[1738635912444,7.03724425,219.2,219.08,13.41184853]
[1738635912645,7.03724425,219.2,219.1,13.41184853]
[1738635913457,7.03724425,219.23,219.11,4.5639]
[1738635914674,7.03724425,219.23,219.09,17.97614853]
[1738635915187,0.71073611,219.22,219.09,4.5643]
[1738635915575,0.71073611,219.22,219.1,20.0]
[1738635916082,0.71073611,219.22,219.09,4.5643]
[1738635917293,0.71073611,219.22,219.06,24.5649]
[1738635917593,0.58524611,219.24,219.07,13.41184853]
[1738635917762,20.58524611,219.25,219.07,13.41184853]
[1738635918164,0.12549,219.24,219.07,13.41184853]
[1738635918359,0.12549,219.22,219.07,13.41184853]
[1738635918585,0.12549,219.2,219.07,13.41184853]
[1738635918787,0.58524611,219.19,219.07,13.41184853]
[1738635919203,0.58524611,219.19,219.09,0.063]
[1738635919488,20.0,219.21,219.09,0.063]
[1738635919694,0.12549,219.2,219.09,0.063]
[1738635919990,20.0,219.21,219.07,0.25098]
[1738635920193,13.53733853,219.26,219.07,0.25098]
[1738635920402,0.58524611,219.25,219.07,0.25098]
[1738635920701,13.53733853,219.24,219.07,0.25098]
[1738635920994,13.53733853,219.27,219.09,0.25098]
[1738635921197,1.5577,219.32,219.16,0.25098]
[1738635921365,6.513,219.34,219.18,0.12549]
[1738635921688,20.0,219.31,219.17,3.38]
[1738635921993,13.41184853,219.33,219.18,20.0]
[1738635922163,0.12549,219.32,219.18,20.0]
[1738635922365,0.12549,219.32,219.19,4.5622]
[1738635922705,20.0,219.3,219.19,4.5622]
[1738635922867,13.41184853,219.33,219.2,20.0]
[1738635923378,13.41184853,219.33,219.18,4.5624]
[1738635923575,0.12549,219.32,219.18,4.5624]
[1738635923881,13.41184853,219.31,219.19,20.0]
[1738635924079,0.71073611,219.3,219.19,20.0]
[1738635924474,0.71073611,219.3,219.17,3.38]
[1738635924475,0.12549,219.28,219.17,3.38]
[1738635924684,20.0,219.26,219.17,3.38]
[1738635925288,14.12258464,219.25,219.12,1.5782]
[1738635925587,13.53733853,219.21,219.1,4.5639]
[1738635925792,14.12258464,219.21,219.08,4.5644]
[1738635926001,13.53733853,219.21,219.08,4.5644]
[1738635926205,14.12258464,219.21,219.08,4.5644]
[1738635927105,20.0,219.18,219.07,1.5782]
[1738635927274,13.53733853,219.17,219.04,4.5651]
[1738635927478,0.58524611,219.16,219.02,6.1504]
[1738635927700,13.53733853,219.15,219.02,6.1504]
[1738635927908,13.53733853,219.13,219.01,0.063]
[1738635928200,0.58524611,219.12,219.01,0.063]
[1738635928793,13.53733853,219.11,219.01,0.063]
[1738635928990,7.10574611,219.1,219.01,0.063]
[1738635929319,20.0,219.06,219.01,0.063]